fUSD/lending_fUSD_20260107
["ID","MTS","AMOUNT","RATE_DAILY","PERIOD"]
[400642075,1767759048701,-203.57623507,0.0003877,2]
[400642077,1767759048710,-300.0,0.00038771,2]
[400642079,1767759048720,-300.0,0.00038772,2]
[400642081,1767759048730,-254.75323386,0.00038774,2]
[400642084,1767759048741,-45.24676614,0.00038774,2]
[400642086,1767759048751,-300.0,0.00038776,2]
[400642088,1767759048760,-192.2249713,0.00038778,2]
[400642090,1767759048771,-107.7750287,0.00038778,2]
[400642092,1767759048780,-300.0,0.00038792,2]
[400642094,1767759048789,-206.74271188,0.00038798,2]
[400642099,1767759048835,-300.0,0.00038763,2]
[400642101,1767759048844,-93.25728812,0.00038798,2]
[400642104,1767759048855,-300.0,0.000388,2]
[400642106,1767759048864,-300.0,0.00038809,2]
[400642108,1767759048874,-300.0,0.00038809,2]
[400642110,1767759048885,-300.0,0.0003881,2]
[400642112,1767759048895,-300.0,0.00038818,2]
[400642114,1767759048904,-300.0,0.00038822,2]
[400642116,1767759048913,-300.0,0.00038837,2]
[400642118,1767759048922,-5.54387479,0.00038838,2]
[400642120,1767759048934,-294.45612521,0.00038838,2]
[400642122,1767759048944,-300.0,0.00038839,2]
[400642124,1767759048953,-300.0,0.00038841,2]
[400642126,1767759048962,-300.0,0.00038843,2]
[400642128,1767759048971,-300.0,0.00038843,2]
[400642130,1767759048980,-300.0,0.00038852,2]
[400642132,1767759048990,-300.0,0.00038853,2]
[400642134,1767759048999,-300.0,0.00038858,2]
[400642136,1767759049010,-300.0,0.00038859,2]
[400642138,1767759049019,-300.0,0.00038863,2]
[400642140,1767759049028,-168.36414314,0.00038866,2]
[400642462,1767759055957,1000.0,0.00032667,120]
[400642476,1767759158908,497.89554429,0.00032776,120]
[400642484,1767759205422,1000.0,0.00032677,120]
[400642485,1767759209019,304.0273,0.000328,120]
[400642487,1767759325593,422.0,0.00032876,120]
[400642511,1767759746779,494.45,9.598e-05,2]
[400642512,1767759746972,494.45,0.00010104,2]
[400642513,1767759747157,494.45,0.00010609,2]
[400642514,1767759747363,494.45,0.00011114,2]
[400642515,1767759747560,494.45,0.00011619,2]
[400642516,1767759747759,494.45,0.00012124,2]
[400642517,1767759747947,494.45,0.00012629,2]
[400642518,1767759748170,494.45,0.00013135,2]
[400642519,1767759748505,494.45,0.0001364,2]
[400642520,1767759748977,494.45,0.00014145,2]
[400642521,1767759749175,494.45,0.0001465,2]
[400642522,1767759749377,494.45,0.00015155,2]
[400642523,1767759749740,494.45,0.0001566,2]
[400642528,1767759830253,2200.0,0.00016,7]
[400642554,1767759924965,1026.43649281,0.000108,2]
[400642555,1767759929019,8973.57350719,0.00016,2]
[400642556,1767759929044,10000.01,0.00016,2]
[400642557,1767759929069,3110.77128018,0.00016,2]
[400642559,1767759960074,6889.23871982,8e-05,2]
[400642560,1767759960098,10000.01,8e-05,2]
[400642561,1767759960120,6658.11725954,8e-05,2]
[400642563,1767759963975,635.29717806,0.00011,2]
[400642565,1767760026491,-494.45,0.00016166,2]
[400642566,1767760026515,-41.52721557,0.000162,5]
[400642567,1767760028723,-250.0,0.000162,5]
[400642568,1767760030121,-298.35835247,0.000162,5]
[400642569,1767760031548,-281.49733174,0.000162,5]
[400642570,1767760035104,-328.1886623,0.000162,5]
[400642571,1767760036990,-185.79476472,0.000162,5]
[400642572,1767760037683,2706.5955624,0.00016119,2]
[400642573,1767760037705,3155.5720696,0.00016119,2]
[400642574,1767760038450,-255.32900744,0.000162,5]
[400642575,1767760040486,-195.0,0.000162,5]
[400642576,1767760042512,-306.95311585,0.000162,5]
[400642577,1767760045467,-310.10312473,0.000162,5]
[400642578,1767760047083,-362.54894522,0.000162,5]
[400642579,1767760049688,-165.30030617,0.000162,5]
[400642580,1767760051196,-357.20962166,0.000162,5]
[400642581,1767760053917,-248.0647759,0.000162,5]
[400642582,1767760057639,-203.69662069,0.000162,5]
[400642583,1767760059212,-358.93138377,0.000162,5]
[400642584,1767760059390,100337.0,0.00032877,120]
[400642585,1767760062381,-192.03704288,0.000162,5]
[400642586,1767760065552,-161.41992823,0.000162,5]
[400642587,1767760067056,-211.34,0.000162,5]
[400642588,1767760069662,-163.01688665,0.000162,5]
[400642589,1767760070743,-333.88225715,0.000162,5]
[400642590,1767760073016,-365.94217656,0.000162,5]
[400642591,1767760075089,-239.02861214,0.000162,5]
[400642592,1767760078272,-195.0,0.000162,5]
[400642593,1767760081012,-322.85125843,0.000162,5]
[400642594,1767760082776,-300.0,0.00016199,2]
[400642595,1767760082802,-117.87873841,0.000162,5]
[400642596,1767760084253,6844.4379304,0.0001439,2]
[400642597,1767760084281,2158.78987066,0.0001439,2]
[400642598,1767760084314,-188.86471918,0.000162,5]
[400642599,1767760086869,-442.88016213,0.000162,5]
[400642600,1767760088355,-300.0,0.000162,5]
[400642602,1767760092214,-300.0,0.000162,5]
[400642603,1767760094357,-402.12800256,0.000162,5]
[400642604,1767760096358,-202.6548135,0.000162,5]
[400642605,1767760097352,4502.29079711,0.00015,2]
[400642606,1767760101583,-260.96047301,0.000162,5]
[400642607,1767760103081,-228.45568336,0.000162,5]
[400642608,1767760105132,-214.66824121,0.000162,5]
[400642609,1767760107654,-300.0,0.000162,5]
[400642610,1767760109794,-245.75464601,0.000162,5]
[400642611,1767760110991,1716.03551826,0.00014999,2]
[400642612,1767760112783,-404.0648565,0.000162,5]
[400642613,1767760114207,-163.1260951,0.000162,5]
[400642617,1767760123702,-270.0,0.000162,5]
[400642618,1767760125382,-180.32884553,0.000162,5]
[400642619,1767760126869,-390.67417938,0.000162,5]
[400642620,1767760128912,-169.56441531,0.000162,5]
[400642631,1767760130423,-309.54306662,0.000162,5]
[400642632,1767760131880,-163.43658367,0.000162,5]
[400642633,1767760133625,-225.98100227,0.000162,5]
[400642634,1767760135899,-203.43128444,0.000162,5]
[400642635,1767760137958,-763.85,0.000162,5]
[400642636,1767760141194,-619.06579464,0.000162,5]
[400642637,1767760146596,-660.48420536,0.000162,5]
[400642638,1767760164130,-5970.92218643,0.000162,5]
[400642675,1767760233392,-300.0,0.00016199,2]
[400642676,1767760233402,-300.0,0.00016199,2]
[400642677,1767760233413,-1200.0,0.00016199,2]
[400642678,1767760233422,-3761.89596264,0.000162,5]
[400642679,1767760233432,-1437.57242221,0.000162,5]
[400642680,1767760233443,-2379.46437723,0.000162,5]
[400642681,1767760233454,-999.0,0.000162,5]
[400642682,1767760233472,-1902.81382997,0.000162,5]
[400642683,1767760233483,-304.28914531,0.000162,5]
[400642684,1767760233494,-508.0,0.000162,5]
[400642685,1767760233505,-854.31250193,0.000162,5]
[400642686,1767760233516,-653.94812092,0.000162,5]
[400642687,1767760233531,-2124.18576796,0.000162,5]
[400642691,1767760238181,-2009.69128543,0.000162,5]
[400642692,1767760238192,-7061.43012764,0.000162,5]
[400642693,1767760238202,-250.0,0.00016418,2]
[400642694,1767760238213,-494.45,0.00016671,2]
[400642695,1767760238224,-165.33,0.00016712,2]
[400642696,1767760238234,-572.98,0.00016879,2]
[400642697,1767760238246,-494.45,0.00017176,2]
[400642698,1767760238255,-1852.42,0.00017241,2]
[400642699,1767760238266,-3558.69,0.00017478,2]
[400642700,1767760238280,-572.98,0.00017512,2]
[400642701,1767760238290,-494.45,0.00017681,2]
[400642702,1767760238300,-420.0,0.00017707,2]
[400642703,1767760238309,-420.0,0.00017707,2]
[400642704,1767760238318,-2647.6,0.00017716,2]
[400642705,1767760238328,-2372.93990302,0.00017782,2]
[400642706,1767760238340,-223.77895432,0.00017782,2]
[400642707,1767760238350,-250.0,0.00017782,2]
[400642708,1767760238360,-1680.0,0.00017796,2]
[400642709,1767760238370,-2423.07657205,0.000178,2]
[400642710,1767760238380,-164.18733299,0.000178,2]
[400642711,1767760238390,-162.8587207,0.000178,2]
[400642712,1767760238400,-221.0,0.0001781,2]
[400642713,1767760238409,-2423.07657198,0.00017811,2]
[400642714,1767760238418,-164.18733298,0.0001782,2]
[400642715,1767760238428,-195.0,0.0001782,2]
[400642716,1767760238437,-250.0,0.0001782,2]
[400642717,1767760238446,-400.76019197,0.0001782,2]
[400642718,1767760238455,-2423.07657198,0.00017822,2]
[400642720,1767760238464,-2423.07657198,0.00017833,2]
[400642722,1767760238474,-162.8587207,0.00017833,2]
[400642724,1767760238483,-164.18733298,0.0001784,2]
[400642726,1767760238493,-2423.07657198,0.00017844,2]
[400642728,1767760238502,-2423.07657198,0.00017856,2]
[400642730,1767760238511,-164.18733298,0.0001786,2]
[400642732,1767760238520,-2423.07657198,0.00017867,2]
[400642734,1767760238530,-162.8587207,0.00017867,2]
[400642736,1767760238539,-2423.07657198,0.00017878,2]
[400642738,1767760238548,-164.18733298,0.0001788,2]
[400642740,1767760238558,-2423.07657198,0.00017889,2]
[400642742,1767760238568,-151.0,0.00017897,2]
[400642744,1767760238577,-500.0,0.00017899,2]
[400642745,1767760238588,-184.72888944,0.00017899,2]
[400642746,1767760238598,-515.56844496,0.00017899,2]
[400642747,1767760238609,-500.0,0.00017899,2]
[400642748,1767760238618,-573.84935046,0.00017899,2]
[400642749,1767760238628,-166.20637583,0.00017899,2]
[400642750,1767760238639,-386.06345617,0.00017899,2]
[400642751,1767760238648,-500.0,0.00017899,2]
[400642752,1767760238658,-500.0,0.00017899,2]
[400642753,1767760238669,-500.0,0.00017899,2]
[400642754,1767760238678,-500.0,0.00017899,2]
[400642755,1767760238688,-555.85954573,0.00017899,2]
[400642756,1767760238698,-500.0,0.00017899,2]
[400642758,1767760238708,-500.0,0.00017899,2]
[400642760,1767760238718,-500.0,0.00017899,2]
[400642761,1767760238728,-500.0,0.00017899,2]
[400642763,1767760238738,-500.0,0.00017899,2]
[400642765,1767760238748,-525.48685797,0.00017899,2]
[400642767,1767760238758,-500.0,0.00017899,2]
[400642769,1767760238768,-500.0,0.00017899,2]
[400642771,1767760238777,-167.39386545,0.00017899,2]
[400642773,1767760238789,-500.0,0.00017899,2]
[400642775,1767760238799,-500.0,0.00017899,2]
[400642777,1767760238809,-500.0,0.00017899,2]
[400642779,1767760238819,-225.98100227,0.00017899,2]
[400642781,1767760238828,-500.0,0.00017899,2]
[400642783,1767760238839,-867190.21266028,0.000179,2]
[400642785,1767760238852,-132809.78733972,0.000179,2]
[400642787,1767760238862,-164.18733298,0.000179,2]
[400642790,1767760238872,-2423.07657198,0.000179,2]
[400642792,1767760238881,-162.8587207,0.000179,2]
[400642794,1767760238891,-8047.53660093,0.000179,2]
[400642796,1767760238902,-2794.52261983,0.000179,2]
[400642798,1767760238913,-8719.81639884,0.000179,2]
[400642800,1767760238922,-19103.35192093,0.000179,2]
[400642802,1767760238932,-1898.133099,0.000179,2]
[400642803,1767760238941,-310.0,0.00017973,2]
[400642806,1767760238952,-500.0,0.00017973,2]
[400642807,1767760238962,-500.0,0.00017973,2]
[400642809,1767760238972,-500.0,0.00017973,2]
[400642811,1767760238982,-500.0,0.00017973,2]
[400642812,1767760238991,-500.0,0.00017973,2]
[400642813,1767760239001,-500.0,0.00017973,2]
[400642814,1767760239011,-552.50710843,0.00017973,2]
[400642815,1767760239020,-500.0,0.00017973,2]
[400642816,1767760239029,-500.0,0.00017973,2]
[400642817,1767760239039,-500.0,0.00017973,2]
[400642818,1767760239048,-500.0,0.00017973,2]
[400642819,1767760239057,-500.0,0.00017973,2]
[400642820,1767760239066,-500.0,0.00017973,2]
[400642821,1767760239075,-519.44971303,0.00017973,2]
[400642822,1767760239085,-500.0,0.00017973,2]
[400642823,1767760239096,-500.0,0.00017973,2]
[400642824,1767760239106,-500.0,0.00017973,2]
[400642825,1767760239115,-315.65221817,0.00017986,2]
[400642827,1767760239124,-717.82149386,0.0001799,2]
[400642829,1767760239133,-717.82149386,0.0001799,2]
[400642831,1767760239142,-717.82149386,0.0001799,2]
[400642833,1767760239151,-151.0,0.00017997,2]
[400642835,1767760239161,-300.0,0.00017999,2]
[400642837,1767760239171,-692.04354688,0.00017999,2]
[400642838,1767760239182,-4657872.10927787,0.00018,2]
[400642841,1767760239193,-702.4362138,0.00018,2]
[400642843,1767760239209,-24845.04712779,0.00018,2]
[400642964,1767760240320,-8655622.06183456,0.00018,2]
[400642967,1767760240331,-755.69074917,0.00018,2]
[400642978,1767760240427,-795.13429035,0.00018,2]
[400642980,1767760240439,-2154592.35448833,0.00018,2]
[400642982,1767760240448,-3603.13674707,0.00018,2]
[400642984,1767760240456,-13497.2315297,0.00018,2]
[400642986,1767760240465,-1549041.3728883,0.00018,2]
[400643076,1767760241260,-1.7e-07,0.00018,2]
[400643285,1767760244225,-1389.805,0.00018,2]
[400643286,1767760245183,-69.4613911,0.00018,2]
[400643288,1767760246264,-64785.0,0.00018,2]
[400643289,1767760246375,-102128.2363468,0.00018,2]
[400643292,1767760302246,428.6228944,0.0003287,120]
[400643320,1767760582332,150.0,0.0001735,120]
[400643445,1767761374115,-1500.0,0.00016812,2]
[400643446,1767761374135,-151.1,0.00016817,2]
[400643447,1767761374155,-295.44,0.00016979,2]
[400643448,1767761374174,-250.0,0.00016982,2]
[400643449,1767761374194,-600.0,0.00016984,2]
[400643450,1767761374214,-227.59193555,0.00016984,2]
[400643451,1767761374234,-500.0,0.00016989,2]
[400643452,1767761374255,-250.0,0.00016989,2]
[400643453,1767761374275,-250.0,0.00017,2]
[400643454,1767761374295,-294.0,0.00017,2]
[400643455,1767761374316,-600.0,0.00017007,2]
[400643456,1767761374336,-376.22104568,0.00017007,2]
[400643457,1767761374357,-61.54747865,0.00017109,3]
[400643473,1767761432349,-150.0,0.00017088,2]
[400643474,1767761432694,-250.0,0.00017098,2]
[400643475,1767761432704,-937.45252135,0.00017109,3]
[400643476,1767761432715,-1000.0,0.00017211,2]
[400643477,1767761432724,-150.0,0.0001735,2]
[400643478,1767761432734,-151.0,0.00017526,2]
[400643479,1767761432743,-151.0,0.00017527,2]
[400643480,1767761432753,-151.0,0.00017535,2]
[400643481,1767761432764,-151.0,0.00017535,2]
[400643482,1767761432773,-151.0,0.00017538,2]
[400643483,1767761432783,-151.0,0.00017538,2]
[400643484,1767761432792,-2608.88861821,0.00017556,2]
[400643485,1767761432801,-166.66,0.00017653,2]
[400643486,1767761432810,-300.0,0.00017656,2]
[400643487,1767761432819,-1200.0,0.00017656,2]
[400643488,1767761432830,-3714.63,0.00017657,2]
[400643489,1767761432839,-1002.29010168,0.00017699,2]
[400643490,1767761432849,-9685.25208942,0.000177,2]
[400643491,1767761432859,-2500.0,0.000177,2]
[400643492,1767761432868,-12433.65042466,0.000177,2]
[400643493,1767761432877,-218.65304711,0.00017789,2]
[400643494,1767761432886,-151.0,0.00017789,2]
[400643495,1767761432896,-151.0,0.00017789,2]
[400643496,1767761432905,-151.0,0.00017789,2]
[400643497,1767761432914,-151.0,0.00017789,2]
[400643498,1767761432924,-151.0,0.00017789,2]
[400643499,1767761432934,-151.0,0.00017789,2]
[400643500,1767761432943,-500.0,0.00017799,2]
[400643501,1767761432953,-360.89791147,0.00017799,2]
[400643502,1767761432963,-401.69454532,0.00017799,2]
[400643503,1767761432972,-500.0,0.00017799,2]
[400643504,1767761432982,-500.0,0.00017799,2]
[400643505,1767761432991,-170.24441932,0.00017799,2]
[400643506,1767761433000,-169.49853977,0.00017799,2]
[400643507,1767761433010,-616.33527049,0.00017799,2]
[400643508,1767761433020,-1256.104,0.00017799,2]
[400643509,1767761433029,-159.848,0.00017799,2]
[400643510,1767761433038,-1000.0,0.000178,2]
[400643511,1767761433048,-148845.34383761,0.000178,2]
[400643512,1767761433059,-1276.06923187,0.000178,2]
[400643513,1767761433070,-5749.83364552,0.000178,2]
[400643516,1767761438306,-151.0,0.00017707,2]
[400643517,1767761438317,-151.0,0.00017707,2]
[400643518,1767761438327,-1735.26512655,0.000178,2]
[400643519,1767761438339,-1893.48,0.000178,2]
[400643520,1767761438361,-2008.95009054,0.000178,2]
[400643521,1767761438373,-22353.46964009,0.000178,2]
[400643522,1767761438385,-673.17584229,0.000178,2]
[400643523,1767761438418,-18907.28622953,0.000178,2]
[400643524,1767761438476,-1089.81245063,0.000178,2]
[400643525,1767761438495,-4561.52888299,0.000178,2]
[400643526,1767761438507,-665.29251966,0.000178,2]
[400643527,1767761438531,-97.59112616,0.000178,2]
[400643716,1767761440776,-790142.90137656,0.000178,2]
[400643718,1767761440786,-231.79388186,0.0001783,2]
[400643720,1767761440795,-219.69659517,0.0001783,2]
[400643722,1767761440804,-2754.91812186,0.0001793,2]
[400643724,1767761440813,-178.03975585,0.0001793,3]
[400643726,1767761440822,-500.0,0.00017973,2]
[400643728,1767761440832,-500.39976205,0.00017973,2]
[400643730,1767761440842,-500.0,0.00017973,2]
[400643732,1767761440851,-500.0,0.00017973,2]
[400643734,1767761440860,-509.85167705,0.00017973,2]
[400643736,1767761440869,-500.0,0.00017973,2]
[400643738,1767761440879,-501.13930281,0.00017973,2]
[400643740,1767761440888,-500.0,0.00017973,2]
[400643742,1767761440897,-500.0,0.00017973,2]
[400643745,1767761440907,-500.0,0.00017973,2]
[400643746,1767761440916,-500.0,0.00017973,2]
[400643749,1767761440925,-224.4368293,0.00017973,2]
[400643751,1767761440935,-500.0,0.00017973,2]
[400643752,1767761440944,-524.05521125,0.00017973,2]
[400643754,1767761440953,-500.0,0.00017973,2]
[400643756,1767761440962,-506.68069566,0.00017973,2]
[400643758,1767761440971,-500.0,0.00017973,2]
[400643760,1767761440980,-500.0,0.00017973,2]
[400643762,1767761440989,-1291.0,0.00017973,2]
[400643764,1767761440999,-827.4515376,0.00017994,2]
[400643766,1767761441008,-39192.550194,0.00017994,2]
[400643768,1767761441017,-139045.5680591,0.00017994,2]
[400643770,1767761441026,-5583.8591054,0.00017994,2]
[400643772,1767761441036,-40486.2361561,0.00017994,2]
[400643774,1767761441045,-9111.4288708,0.00017994,2]
[400643776,1767761441055,-151.0,0.00017997,2]
[400643779,1767761441065,-151.0,0.00017997,2]
[400643780,1767761441074,-500.0,0.00017999,2]
[400643783,1767761441083,-500.0,0.00017999,2]
[400643784,1767761441092,-500.0,0.00017999,2]
[400643786,1767761441101,-500.0,0.00017999,2]
[400643788,1767761441110,-500.0,0.00017999,2]
[400643790,1767761441119,-167.52941689,0.00017999,2]
[400643792,1767761441128,-500.0,0.00017999,2]
[400643794,1767761441137,-5826.21400436,0.00017999,2]
[400643796,1767761441146,-2461598.51215884,0.00018,2]
[400643798,1767761441155,-210.43481213,0.0001803,2]
[400643800,1767761441164,-998.38,0.0001813,2]
[400643802,1767761441173,-572.98,0.00018145,2]
[400643804,1767761441183,-494.45,0.00018186,2]
[400643806,1767761441192,-166.66,0.00018235,2]
[400643808,1767761441201,-1291.0,0.00018247,2]
[400643810,1767761441211,-300.0,0.00018493,2]
[400643812,1767761441221,-200.0,0.00018514,2]
[400643814,1767761441232,-1000.0,0.00018521,2]
[400643816,1767761441241,-1000.0,0.00018521,2]
[400643818,1767761441250,-1004.95792057,0.00018521,2]
[400643820,1767761441259,-549.42963918,0.00018521,2]
[400643822,1767761441272,-1000.0,0.00018521,2]
[400643824,1767761441282,-1000.0,0.00018521,2]
[400643827,1767761441292,-1000.0,0.00018521,2]
[400643829,1767761441302,-1000.0,0.00018521,2]
[400643831,1767761441311,-1000.0,0.00018521,2]
[400643832,1767761441320,-1291.0,0.00018521,2]
[400643834,1767761441329,-141217.91,0.00018522,2]
[400643837,1767761441339,-3714.63,0.00018539,2]
[400643838,1767761441347,-500.99,0.000186,2]
[400643841,1767761441357,-305.10486684,0.00018677,2]
[400643842,1767761441366,-195.0,0.00018677,2]
[400643844,1767761441375,-600.0,0.00018677,2]
[400643846,1767761441385,-193.0,0.00018677,2]
[400643848,1767761441394,-1791.95470647,0.00018677,2]
[400643850,1767761441404,-195.0,0.00018677,2]
[400643852,1767761441413,-250.0,0.00018677,2]
[400643854,1767761441423,-494.45,0.00018692,2]
[400643856,1767761441434,-572.98,0.00018778,2]
[400643858,1767761441444,-1291.0,0.00018795,2]
[400643860,1767761441454,-250.0,0.00018796,2]
[400643863,1767761441464,-166.66,0.00018818,2]
[400643898,1767761441473,-421.064646,0.00019,2]
[400643900,1767761441809,-33703.08466791,0.00019,2]
[400643902,1767761441820,-300.0,0.00019,2]
[400643904,1767761441832,-1291.0,0.00019068,2]
[400643906,1767761441844,-1500.0,0.00019068,2]
[400643908,1767761441853,-696.89594249,0.00019068,2]
[400643910,1767761441865,-1500.0,0.00019068,2]
[400643912,1767761441876,-1339.80311921,0.00019068,2]
[400643914,1767761441888,-1500.0,0.00019068,2]
[400643916,1767761441899,-1500.0,0.00019068,2]
[400643918,1767761441909,-1500.0,0.00019068,2]
[400643919,1767761441920,-200.20814191,0.00019082,2]
[400643921,1767761441937,-900.0,0.00019161,2]
[400643924,1767761441952,-882.0,0.00019178,2]
[400643926,1767761441962,-494.45,0.00019197,2]
[400643928,1767761441976,-420.0,0.00019271,2]
[400643930,1767761441986,-1291.0,0.00019342,2]
[400643932,1767761441996,-1000.0,0.00019363,2]
[400643934,1767761442007,-1680.0,0.00019366,2]
[400643936,1767761442017,-166.66,0.00019401,2]
[400643938,1767761442027,-572.98,0.00019411,2]
[400643940,1767761442037,-3714.63,0.00019422,2]
[400643942,1767761442047,-185.58,0.00019546,2]
[400643944,1767761442056,-1291.0,0.00019616,2]
[400643945,1767761442066,-2000.0,0.00019616,2]
[400643947,1767761442078,-2000.0,0.00019616,2]
[400643950,1767761442089,-2000.0,0.00019616,2]
[400643951,1767761442100,-2000.0,0.00019616,2]
[400643953,1767761442111,-2000.0,0.00019616,2]
[400643956,1767761442123,-2060.5,0.00019724,2]
[400643958,1767761442133,-500.0,0.00019872,2]
[400643960,1767761442144,-500.0,0.00019872,2]
[400643962,1767761442153,-531.52006841,0.00019872,2]
[400643964,1767761442163,-527.24343499,0.00019872,2]
[400643966,1767761442173,-515.08412896,0.00019872,2]
[400643968,1767761442184,-508.16431547,0.00019872,2]
[400643969,1767761442194,-508.77600646,0.00019872,2]
[400643971,1767761442202,-500.0,0.00019872,2]
[400643973,1767761442211,-512.52633947,0.00019872,2]
[400643975,1767761442222,-523.03584053,0.00019872,2]
[400643977,1767761442231,-240.87342203,0.00019872,2]
[400643979,1767761442241,-500.0,0.00019872,2]
[400643981,1767761442251,-500.0,0.00019872,2]
[400643983,1767761442260,-500.0,0.00019872,2]
[400643985,1767761442271,-500.0,0.00019872,2]
[400643987,1767761442280,-500.0,0.00019872,2]
[400643989,1767761442290,-500.0,0.00019872,2]
[400643991,1767761442302,-500.0,0.00019872,2]
[400643993,1767761442311,-500.0,0.00019872,2]
[400643995,1767761442321,-756.54472085,0.00019873,2]
[400643997,1767761442330,-866.0,0.0001989,2]
[400643999,1767761442340,-1291.0,0.0001989,2]
[400644001,1767761442349,-151.0,0.00019947,2]
[400644003,1767761442358,-162077.17812766,0.0001995,15]
[400644005,1767761442367,-500.0,0.00019973,2]
[400644007,1767761442378,-500.0,0.00019973,2]
[400644010,1767761442388,-500.0,0.00019973,2]
[400644012,1767761442397,-500.0,0.00019973,2]
[400644014,1767761442408,-168.53464326,0.00019973,2]
[400644016,1767761442419,-500.0,0.00019973,2]
[400644018,1767761442428,-500.0,0.00019973,2]
[400644020,1767761442438,-500.0,0.00019973,2]
[400644022,1767761442448,-500.0,0.00019973,2]
[400644024,1767761442457,-500.0,0.00019973,2]
[400644026,1767761442468,-286.84842062,0.00019973,2]
[400644028,1767761442478,-500.0,0.00019973,2]
[400644030,1767761442494,-500.0,0.00019973,2]
[400644032,1767761442502,-609.94892981,0.00019973,2]
[400644034,1767761442512,-500.0,0.00019973,2]
[400644036,1767761442522,-195.06667749,0.00019973,2]
[400644038,1767761442533,-429.09119552,0.00019973,2]
[400644040,1767761442542,-501.05787152,0.00019973,2]
[400644042,1767761442551,-500.0,0.00019973,2]
[400644044,1767761442562,-500.0,0.00019973,2]
[400644046,1767761442571,-500.0,0.00019973,2]
[400644047,1767761442580,-500.0,0.00019973,2]
[400644050,1767761442589,-500.0,0.00019973,2]
[400644051,1767761442599,-500.0,0.00019973,2]
[400644054,1767761442608,-500.0,0.00019973,2]
[400644056,1767761442617,-500.0,0.00019973,2]
[400644058,1767761442626,-500.0,0.00019973,2]
[400644060,1767761442635,-515.27642925,0.00019973,2]
[400644061,1767761442644,-500.0,0.00019973,2]
[400644064,1767761442653,-500.0,0.00019973,2]
[400644066,1767761442663,-500.0,0.00019973,2]
[400644068,1767761442672,-500.0,0.00019973,2]
[400644070,1767761442682,-500.0,0.00019973,2]
[400644072,1767761442692,-500.0,0.00019973,2]
[400644074,1767761442702,-500.0,0.00019973,2]
[400644076,1767761442711,-500.0,0.00019973,2]
[400644078,1767761442720,-500.0,0.00019973,2]
[400644080,1767761442729,-500.0,0.00019973,2]
[400644082,1767761442738,-279.31517583,0.00019973,2]
[400644084,1767761442747,-500.0,0.00019973,2]
[400644086,1767761442756,-500.0,0.00019973,2]
[400644087,1767761442765,-578.02071049,0.00019973,2]
[400644090,1767761442776,-500.0,0.00019973,2]
[400644092,1767761442785,-500.0,0.00019973,2]
[400644094,1767761442794,-500.0,0.00019973,2]
[400644096,1767761442803,-500.0,0.00019973,2]
[400644098,1767761442813,-500.0,0.00019973,2]
[400644100,1767761442824,-570.66707455,0.00019973,2]
[400644102,1767761442833,-500.0,0.00019973,2]
[400644104,1767761442842,-500.0,0.00019973,2]
[400644106,1767761442853,-500.0,0.00019973,2]
[400644108,1767761442862,-166.66,0.00019983,2]
[400644110,1767761442872,-1463.88206929,0.0002,5]
[400644112,1767761442881,-5392.49631195,0.0002,5]
[400644114,1767761442891,-150.0,0.0002,20]
[400644116,1767761442900,-9685.25208938,0.00020056,2]
[400644118,1767761442909,-208.78,0.00020072,2]